bitfinex/quotes_BTCUSD_20250610
["timestamp","ask_amount","ask_price","bid_price","bid_amount"]
[1749568948966,1.38934377,109080.0,109070.0,4e-05]
[1749568949172,2.01971507,109080.0,109070.0,4e-05]
[1749568949373,0.75897247,109080.0,109070.0,4e-05]
[1749568951234,0.85032587,109080.0,109070.0,4e-05]
[1749568951717,0.68801247,109080.0,109070.0,4e-05]
[1749568951940,0.78561247,109080.0,109070.0,4e-05]
[1749568953504,0.66137247,109080.0,109070.0,4e-05]
[1749568953724,0.78561247,109080.0,109070.0,4e-05]
[1749568955550,0.66137247,109080.0,109070.0,4e-05]
[1749568955975,0.78561247,109080.0,109070.0,4e-05]
[1749568956434,0.88210247,109080.0,109070.0,4e-05]
[1749568956618,0.78561247,109080.0,109070.0,4e-05]
[1749568957079,0.66137247,109080.0,109070.0,4e-05]
[1749568957297,0.62887247,109080.0,109070.0,4e-05]
[1749568957522,0.75311247,109080.0,109070.0,4e-05]
[1749568958404,0.65551247,109080.0,109070.0,4e-05]
[1749568958620,0.75311247,109080.0,109070.0,4e-05]
[1749568958826,0.72647247,109080.0,109070.0,4e-05]
[1749568960305,0.63511907,109080.0,109070.0,4e-05]
[1749568961750,0.65011907,109080.0,109070.0,4e-05]
[1749568961960,0.66611907,109080.0,109070.0,4e-05]
[1749568964613,0.75747247,109080.0,109070.0,4e-05]
[1749568968306,0.80747247,109080.0,109070.0,4e-05]
[1749568968517,0.89882587,109080.0,109070.0,4e-05]
[1749568969414,0.94882587,109080.0,109070.0,4e-05]
[1749568971146,0.06060409,109070.0,109060.0,8e-05]
[1749568971353,0.56317203,109050.0,109040.0,0.00204]
[1749568971577,0.87007883,109050.0,109040.0,0.00204]
[1749568971792,0.74587883,109050.0,109040.0,0.00204]
[1749568972029,0.87007883,109050.0,109040.0,0.00204]
[1749568972652,0.87207883,109050.0,109040.0,0.00204]
[1749568973102,0.87607883,109050.0,109040.0,0.00204]
[1749568974387,0.92607883,109050.0,109040.0,0.00204]
[1749568974605,0.93007883,109050.0,109040.0,0.00204]
[1749568976850,0.98007883,109050.0,109040.0,0.00204]
[1749568977059,0.56478969,109040.0,109030.0,4e-05]
[1749568977278,0.62394309,109040.0,109030.0,4e-05]
[1749568977511,0.3278955,109050.0,109040.0,0.27849691]
[1749568977734,0.5668089,109050.0,109040.0,0.27849691]
[1749568977953,0.5628089,109050.0,109040.0,0.27849691]
[1749568978402,0.5730089,109050.0,109040.0,0.27849691]
[1749568978618,0.3826089,109050.0,109040.0,0.27849691]
[1749568978834,0.2747555,109050.0,109040.0,0.27849691]
[1749568979060,0.2809621,109050.0,109040.0,0.27849691]
[1749568979283,0.2809621,109050.0,109040.0,0.31009691]
[1749568979284,0.2859621,109050.0,109040.0,0.31009691]
[1749568979539,0.2859621,109050.0,109040.0,0.29479691]
[1749568979972,0.2909621,109050.0,109040.0,0.27849691]
[1749568980195,0.36156084,109050.0,109040.0,0.27849691]
[1749568980418,0.35656084,109050.0,109040.0,0.27849691]
[1749568980867,0.37486084,109050.0,109040.0,0.27849691]
[1749568981328,0.46621424,109050.0,109040.0,0.27849691]
[1749568981532,0.34835424,109050.0,109040.0,0.27849691]
[1749568981754,0.47551424,109050.0,109040.0,0.27849691]
[1749568981967,0.49081424,109050.0,109040.0,0.27849691]
[1749568982416,0.54081424,109050.0,109040.0,0.27849691]
[1749568983067,0.59081424,109050.0,109040.0,0.27849691]
[1749568984616,0.93081424,109050.0,109040.0,0.27849691]
[1749568985047,0.88081424,109050.0,109040.0,0.27849691]
[1749568985258,0.93081424,109050.0,109040.0,0.27849691]
[1749568987941,0.88081424,109050.0,109040.0,0.27849691]
[1749568988162,0.81551424,109050.0,109040.0,0.27849691]
[1749568988404,0.86551424,109050.0,109040.0,0.27849691]
[1749568988626,0.93071424,109050.0,109040.0,0.27849691]
[1749568989052,0.88071424,109050.0,109040.0,0.27849691]
[1749568989268,0.93071424,109050.0,109040.0,0.27849691]
[1749568991222,0.88071424,109050.0,109040.0,0.27849691]
[1749568991478,0.67585424,109050.0,109040.0,0.27849691]
[1749568991695,0.61110084,109050.0,109040.0,0.27849691]
[1749568991918,0.70862084,109050.0,109040.0,0.30979691]
[1749568992136,0.36862084,109050.0,109040.0,0.30979691]
[1749568992369,0.70862084,109050.0,109040.0,0.30979691]
[1749568992595,0.58450084,109050.0,109040.0,0.30979691]
[1749568992865,0.70862084,109050.0,109040.0,0.30979691]
[1749568994494,0.70862084,109050.0,109040.0,0.29479691]
[1749568994749,0.70862084,109050.0,109040.0,0.27849691]
[1749568996407,0.70862084,109050.0,109040.0,0.30979691]
[1749568996645,0.70862084,109050.0,109040.0,0.27849691]
[1749568998491,0.72402084,109050.0,109040.0,0.27849691]
[1749568998712,0.73972084,109050.0,109040.0,0.27849691]
[1749568999166,0.83107424,109050.0,109040.0,0.27849691]
[1749568999380,0.81537424,109050.0,109040.0,0.27849691]
[1749568999605,0.79997424,109050.0,109040.0,0.27849691]
[1749569000523,0.70862084,109050.0,109040.0,0.27849691]
[1749569000768,0.70862084,109050.0,109040.0,0.31029691]
[1749569000973,0.6535221,109050.0,109040.0,0.31029691]
[1749569001661,0.1894021,109050.0,109040.0,0.31029691]
[1749569001884,0.1894021,109050.0,109040.0,0.49917031]
[1749569002988,0.1864021,109050.0,109040.0,0.49917031]
[1749569003203,0.1844021,109050.0,109040.0,0.49917031]
[1749569003410,0.1854021,109050.0,109040.0,0.55543677]
[1749569004489,0.1854021,109050.0,109040.0,0.49917031]
[1749569009703,0.1834021,109050.0,109040.0,0.49917031]
[1749569015004,0.1834021,109050.0,109040.0,0.51371116]
[1749569015455,0.1834021,109050.0,109040.0,0.54096597]
[1749569015665,0.1834021,109050.0,109040.0,0.54196597]
[1749569015884,0.1834021,109050.0,109040.0,0.60521996]
[1749569016096,0.1834021,109050.0,109040.0,0.60621996]
[1749569021102,0.1834021,109050.0,109040.0,0.60617996]
[1749569022576,0.1834021,109050.0,109040.0,0.50869996]
[1749569023022,0.1834021,109050.0,109040.0,0.60613996]
[1749569023882,0.1834021,109050.0,109040.0,0.59159911]
[1749569027071,0.1834021,109050.0,109040.0,0.49415911]
[1749569027300,0.1834021,109050.0,109040.0,0.37185031]
[1749569027745,0.1834021,109050.0,109040.0,0.46929031]
[1749569028412,0.1834021,109050.0,109040.0,0.46829031]
[1749569028638,0.1834021,109050.0,109040.0,0.46729031]
[1749569029747,0.1984021,109050.0,109040.0,0.36985031]
[1749569029975,0.1984021,109050.0,109040.0,0.46729031]
[1749569030183,0.2138021,109050.0,109040.0,0.37593691]
[1749569031452,0.1984021,109050.0,109040.0,0.37593691]
[1749569031900,0.1994021,109050.0,109040.0,0.37593691]
[1749569032118,0.2004021,109050.0,109040.0,0.37593691]
[1749569032333,0.2004021,109050.0,109040.0,0.27849691]
[1749569032334,0.2168021,109050.0,109040.0,0.27849691]
[1749569032549,0.2168021,109050.0,109040.0,0.37593691]
[1749569032767,0.5568021,109050.0,109040.0,0.37593691]
[1749569033406,0.5568021,109050.0,109040.0,0.27849691]
[1749569034234,0.64056484,109050.0,109040.0,0.27849691]
[1749569035410,0.5568021,109050.0,109040.0,0.27849691]
[1749569039072,0.6808021,109050.0,109040.0,0.27849691]
[1749569039961,0.5833621,109050.0,109040.0,0.27849691]
[1749569040615,0.6747155,109050.0,109040.0,0.27849691]
[1749569041287,0.6481555,109050.0,109040.0,0.27849691]
[1749569041508,0.5404021,109050.0,109040.0,0.27849691]
[1749569041731,0.5254021,109050.0,109040.0,0.27849691]
[1749569042389,0.5254021,109050.0,109040.0,0.40753691]
[1749569042597,0.1854021,109050.0,109040.0,0.49889031]
[1749569047626,0.1854021,109050.0,109040.0,0.46729031]
[1749569048478,0.1854021,109050.0,109040.0,0.36985031]
[1749569048686,0.1854021,109050.0,109040.0,0.46729031]
[1749569049232,0.1854021,109050.0,109040.0,0.37593691]
[1749569049434,0.2015021,109050.0,109040.0,0.37593691]
[1749569049638,0.1854021,109050.0,109040.0,0.37593691]
[1749569050247,0.1854021,109050.0,109040.0,0.41945008]
[1749569051861,0.1854021,109050.0,109040.0,0.37593691]
[1749569052074,0.2175021,109050.0,109040.0,0.37593691]
[1749569052292,0.5575021,109050.0,109040.0,0.37593691]
[1749569054189,0.5254021,109050.0,109040.0,0.37593691]
[1749569055673,0.5254021,109050.0,109040.0,0.40773691]
[1749569056300,0.5254021,109050.0,109040.0,0.37593691]
[1749569058732,0.5254021,109050.0,109040.0,0.40743691]
[1749569058942,0.5254021,109050.0,109040.0,0.45097008]
[1749569059545,0.5254021,109050.0,109040.0,0.40743691]
[1749569060635,0.5254021,109050.0,109040.0,0.40747691]
[1749569063375,0.1854021,109050.0,109040.0,0.49883031]
[1749569063815,0.1854021,109050.0,109040.0,0.52608512]
[1749569064678,0.1844021,109050.0,109040.0,0.52608512]
[1749569064885,0.1834021,109050.0,109040.0,0.62395051]
[1749569065099,0.1834021,109050.0,109040.0,0.5966957]
[1749569066632,0.1834021,109050.0,109040.0,0.62397594]
[1749569072643,0.1834021,109050.0,109040.0,0.63851679]
[1749569073205,0.1834021,109050.0,109040.0,0.61123655]
[1749569074249,0.1834021,109050.0,109040.0,0.61223655]
[1749569075101,0.1834021,109050.0,109040.0,0.61323655]
[1749569075864,0.1834021,109050.0,109040.0,0.64049222]
[1749569076073,0.1834021,109050.0,109040.0,0.63949222]
[1749569076279,0.1834021,109050.0,109040.0,0.64149222]
[1749569076690,0.1834021,109050.0,109040.0,0.54405222]
[1749569076901,0.1989021,109050.0,109040.0,0.39814598]
[1749569077112,0.2152021,109050.0,109040.0,0.46929031]
[1749569077991,0.1989021,109050.0,109040.0,0.46929031]
[1749569078402,0.1989021,109050.0,109040.0,0.46729031]
[1749569078813,0.1834021,109050.0,109040.0,0.46729031]
[1749569079019,0.1834021,109050.0,109040.0,0.55194891]
[1749569079435,0.1834021,109050.0,109040.0,0.57920458]
[1749569080582,0.1834021,109050.0,109040.0,0.61540406]
[1749569081181,0.1834021,109050.0,109040.0,0.58814839]
[1749569081369,0.1834021,109050.0,109040.0,0.62994773]
[1749569081686,0.1834021,109050.0,109040.0,0.65802369]
[1749569081887,0.1834021,109050.0,109040.0,0.65902369]
[1749569082239,0.21091173,109050.0,109040.0,0.65802369]
[1749569082440,0.20174205,109050.0,109040.0,0.65802369]
[1749569082695,0.20174205,109050.0,109040.0,0.66002369]
[1749569083076,0.20174205,109050.0,109040.0,0.65902369]
[1749569083347,0.19257212,109050.0,109040.0,0.66102369]
[1749569084187,0.1834021,109050.0,109040.0,0.66102369]
[1749569088084,0.20174188,109050.0,109040.0,0.62482421]
[1749569095436,0.20174188,109050.0,109040.0,0.52742421]
[1749569095673,0.20174188,109050.0,109040.0,0.62478421]
[1749569099622,0.19257212,109050.0,109040.0,0.62478421]
[1749569101300,0.20174188,109050.0,109040.0,0.62478421]
[1749569101512,0.18338529,109060.0,109050.0,0.04744085]
[1749569101720,0.18338529,109060.0,109050.0,0.36582788]
[1749569102400,0.00916892,109060.0,109050.0,0.52946035]
[1749569102611,0.0366757,109060.0,109050.0,0.49656035]
[1749569102855,0.04584496,109060.0,109050.0,0.44300905]
[1749569103069,0.04584496,109060.0,109050.0,0.47440905]
[1749569103286,0.21089265,109060.0,109050.0,0.52894358]
[1749569104177,0.21089265,109060.0,109050.0,0.53094358]
[1749569104395,0.20172373,109060.0,109050.0,0.53094358]
[1749569105675,0.20172339,109060.0,109050.0,0.53094358]
[1749569106980,0.18536847,109070.0,109050.0,0.53094358]
[1749569107209,0.01833743,109060.0,109050.0,0.43959018]
[1749569107417,0.02750644,109060.0,109050.0,0.53094358]
[1749569107630,0.01833743,109060.0,109050.0,0.53094358]
[1749569107844,0.02750635,109060.0,109050.0,0.52894358]
[1749569108080,0.01833743,109060.0,109050.0,0.52894358]
[1749569108288,0.01833743,109060.0,109050.0,0.53094358]
[1749569108507,0.01833743,109060.0,109050.0,0.52794358]
[1749569108742,0.03667553,109060.0,109050.0,0.54885499]
[1749569108964,0.02750686,109060.0,109050.0,0.54885499]
[1749569109187,0.21089215,109060.0,109050.0,0.54985499]
[1749569109643,0.03667519,109060.0,109050.0,0.45253499]
[1749569109867,0.0275061,109060.0,109050.0,0.54885499]
[1749569110083,0.03667511,109060.0,109050.0,0.45153499]
[1749569110305,0.0275061,109060.0,109050.0,0.54885499]
[1749569110516,0.03667502,109060.0,109050.0,0.54885499]
[1749569110933,0.04584411,109060.0,109050.0,0.54885499]
[1749569111147,0.04584403,109060.0,109050.0,0.54885499]
[1749569111374,0.03667502,109060.0,109050.0,0.55085499]
[1749569111592,0.0275061,109060.0,109050.0,0.55085499]
[1749569111803,0.0275061,109060.0,109050.0,0.45353499]
[1749569112054,0.03667511,109060.0,109050.0,0.55085499]
[1749569112480,0.03667511,109060.0,109050.0,0.45353499]
[1749569112690,0.03667511,109060.0,109050.0,0.55085499]
[1749569113164,0.03667511,109060.0,109050.0,0.45353499]
[1749569113375,0.0275061,109060.0,109050.0,0.45353499]
[1749569113597,0.04584411,109060.0,109050.0,0.45353499]
[1749569113816,0.03667502,109060.0,109050.0,0.55081499]
[1749569114653,0.04584411,109060.0,109050.0,0.55081499]
[1749569114880,0.02750652,109060.0,109050.0,0.55081499]
[1749569115532,0.03667561,109060.0,109050.0,0.55081499]
[1749569115777,0.02750652,109060.0,109050.0,0.55081499]
[1749569116199,0.03667561,109060.0,109050.0,0.84541499]
[1749569116623,0.002,109070.0,109060.0,0.04574085]
[1749569116840,0.002,109070.0,109060.0,0.24417826]
[1749569117070,0.002,109070.0,109060.0,0.35937879]
[1749569117514,0.002,109070.0,109060.0,0.71749386]
[1749569117722,0.002,109070.0,109060.0,0.62693285]
[1749569118145,0.002,109070.0,109060.0,0.62793285]
[1749569118402,0.002,109070.0,109060.0,0.62893285]
[1749569118613,0.002,109070.0,109060.0,0.69953979]
[1749569119034,0.002,109070.0,109060.0,0.70353979]
[1749569119470,0.002,109070.0,109060.0,0.70653979]
[1749569123098,0.02750164,109080.0,109070.0,0.2312]
[1749569123317,0.04583579,109080.0,109070.0,0.71036818]
[1749569123547,0.01833406,109080.0,109070.0,0.71036818]
[1749569123750,0.0275013,109080.0,109070.0,0.71036818]
[1749569123969,0.03666879,109080.0,109070.0,0.71036818]
[1749569124181,0.22002045,109080.0,109070.0,0.47916818]
[1749569124398,0.03666879,109080.0,109070.0,0.81468815]
[1749569124601,0.04583637,109080.0,109070.0,0.81568815]
[1749569124819,0.03666879,109080.0,109070.0,0.84758815]
[1749569125046,0.22002045,109080.0,109070.0,0.84758815]
[1749569125255,0.21085346,109080.0,109070.0,0.71844815]
[1749569125476,0.20168639,109080.0,109070.0,0.830229]
[1749569126359,0.20168639,109080.0,109070.0,0.861629]
[1749569126567,0.03666914,109080.0,109070.0,0.861629]
[1749569126776,0.02750156,109080.0,109070.0,0.861629]
[1749569127004,0.22002063,109080.0,109070.0,0.861629]
[1749569127211,0.22002122,109080.0,109070.0,0.861629]
[1749569127646,0.22002122,109080.0,109070.0,0.82534903]
[1749569127858,0.21085398,109080.0,109070.0,0.82534903]
[1749569128065,0.01833474,109080.0,109070.0,0.53074903]
[1749569128270,0.02750232,109080.0,109070.0,0.53074903]
[1749569128475,0.01833474,109080.0,109070.0,0.53074903]
[1749569128719,0.02750232,109080.0,109070.0,0.53074903]
[1749569128934,0.21085398,109080.0,109070.0,0.53074903]
[1749569130216,0.20168665,109080.0,109070.0,0.53074903]
[1749569130632,0.20168665,109080.0,109070.0,0.51474903]
[1749569131605,0.20168665,109080.0,109070.0,0.49934903]
[1749569132300,0.19251924,109080.0,109070.0,0.49934903]
[1749569133244,0.18335166,109080.0,109070.0,0.49934903]
[1749569133470,0.19925166,109080.0,109070.0,0.49934903]
[1749569134681,0.18335166,109080.0,109070.0,0.49934903]
[1749569135969,0.18335166,109080.0,109070.0,0.40210903]
[1749569136178,0.21515166,109080.0,109070.0,0.49930903]
[1749569137043,0.18335166,109080.0,109070.0,0.49930903]
[1749569139440,0.19995166,109080.0,109070.0,0.49930903]
[1749569139701,0.21525166,109080.0,109070.0,0.49930903]
[1749569139940,0.21525166,109080.0,109070.0,0.40210903]
[1749569140155,0.21525166,109080.0,109070.0,0.49930903]
[1749569140577,0.21525166,109080.0,109070.0,0.24597338]
[1749569141407,0.21525166,109080.0,109070.0,0.24397338]
[1749569141845,0.18335166,109080.0,109070.0,0.24397338]
[1749569143314,0.19885166,109080.0,109070.0,0.24397338]
[1749569143738,0.20193631,109090.0,109070.0,0.20409425]
[1749569143976,0.20193631,109090.0,109080.0,0.19215195]
[1749569143977,0.02033247,109090.0,109080.0,0.19215195]
[1749569144206,0.02949904,109090.0,109080.0,0.21020119]
[1749569144423,0.2128339,109090.0,109080.0,0.21020119]
[1749569145426,0.22300064,109090.0,109080.0,0.21020119]
[1749569146099,0.25530064,109090.0,109080.0,0.17850119]
[1749569146321,0.23696817,109090.0,109080.0,0.29189496]
[1749569147235,0.23596817,109090.0,109080.0,0.18115411]
[1749569147461,0.23596817,109090.0,109080.0,0.27831411]
[1749569148176,0.01116632,109090.0,109080.0,0.83608447]
[1749569148390,0.01116607,109090.0,109080.0,0.83608447]
[1749569148614,0.01116615,109090.0,109080.0,0.76347753]
[1749569148827,0.02949904,109090.0,109080.0,0.76347753]
[1749569149046,0.02949904,109090.0,109080.0,0.85403854]
[1749569149303,0.01116615,109090.0,109080.0,0.76347753]
[1749569149543,0.002,109090.0,109080.0,0.76347753]
[1749569149757,0.002,109090.0,109080.0,1.19303854]
[1749569149991,0.002,109090.0,109080.0,1.19503854]
[1749569150225,0.002,109090.0,109080.0,1.3783902]
[1749569150447,0.002,109090.0,109080.0,6.4477251]
[1749569150676,0.002,109090.0,109080.0,6.25320612]
[1749569150902,0.002,109090.0,109080.0,6.24303854]
[1749569151127,0.06049601,109100.0,109090.0,0.38564085]
[1749569151347,0.06049601,109100.0,109090.0,0.6068462]
[1749569151580,0.06966157,109100.0,109090.0,0.6068462]
[1749569151790,0.06049601,109100.0,109090.0,0.6068462]
[1749569151998,0.06049601,109100.0,109090.0,0.63486385]
[1749569152208,0.06966157,109100.0,109090.0,0.63486385]
[1749569152628,0.0788273,109100.0,109090.0,0.63586385]
[1749569152839,0.06966157,109100.0,109090.0,0.63586385]
[1749569153494,0.06966157,109100.0,109090.0,0.56414202]
[1749569153935,0.2438149,109100.0,109090.0,0.54894202]
[1749569154226,0.23464942,109100.0,109090.0,0.84610202]
[1749569154643,0.23464942,109100.0,109090.0,1.15630202]
[1749569155509,0.23464942,109100.0,109090.0,1.12480202]
[1749569155742,0.23464942,109100.0,109090.0,1.17924937]
[1749569157954,0.23464942,109100.0,109090.0,1.21164937]
[1749569158208,0.19248386,109100.0,109090.0,1.21164937]
[1749569161140,0.20164942,109100.0,109090.0,1.21164937]
[1749569161610,0.20164942,109100.0,109090.0,1.19524937]
[1749569162585,0.19446877,109110.0,109090.0,1.21104937]
[1749569162859,0.19446877,109110.0,109090.0,0.93628862]
[1749569162860,0.02749576,109100.0,109090.0,0.93628862]
[1749569163120,0.01833037,109100.0,109090.0,1.12476202]
[1749569163349,0.02949425,109110.0,109100.0,0.0306]
[1749569163579,0.02949433,109110.0,109100.0,0.34391979]
[1749569164548,0.21279558,109110.0,109100.0,0.34391979]
[1749569164758,0.02949433,109110.0,109100.0,0.34391979]
[1749569165215,0.18302002,109120.0,109110.0,0.21454085]
[1749569165405,0.18302002,109120.0,109110.0,0.3330775]
[1749569165658,0.18302002,109120.0,109110.0,0.3862045]
[1749569166745,0.20022002,109120.0,109110.0,0.1862045]
[1749569166961,0.21632002,109120.0,109110.0,0.21565665]
[1749569167189,0.21632002,109120.0,109110.0,0.1884734]
[1749569170756,0.21632002,109120.0,109110.0,0.21565665]
[1749569171627,0.20022002,109120.0,109110.0,0.2301975]
[1749569172468,0.16122002,109120.0,109110.0,0.2301975]
[1749569172955,0.16122002,109120.0,109110.0,0.25684217]
[1749569173675,0.16122002,109120.0,109110.0,0.25680217]
[1749569173676,0.17712002,109120.0,109110.0,0.25680217]
[1749569174151,0.17712002,109120.0,109110.0,0.24226132]
[1749569174370,0.17712002,109120.0,109110.0,0.11853665]
[1749569174589,0.17712002,109120.0,109110.0,0.1884334]
[1749569177076,0.17712002,109120.0,109110.0,0.0913534]
[1749569177294,0.17712002,109120.0,109110.0,0.1884334]
[1749569177978,0.17712002,109120.0,109110.0,0.21568996]
[1749569178228,0.001,109120.0,109110.0,0.28254204]
[1749569178462,0.22094048,109120.0,109110.0,0.31334204]
[1749569178710,0.21177668,109120.0,109110.0,0.31334204]
[1749569178941,0.21177668,109120.0,109110.0,0.25896817]
[1749569179158,0.21077668,109120.0,109110.0,0.25896817]
[1749569179370,0.21077668,109120.0,109110.0,0.25996817]
[1749569179582,0.21077668,109120.0,109110.0,0.26196817]
[1749569179858,0.2016128,109120.0,109110.0,0.26196817]
[1749569180500,0.2016128,109120.0,109110.0,0.31643975]
[1749569181574,0.01116313,109130.0,109120.0,0.21454085]
[1749569181780,0.21075704,109130.0,109120.0,0.4424676]
[1749569182197,0.02748938,109130.0,109120.0,0.4424676]
[1749569182420,0.02748929,109130.0,109120.0,0.4424676]
[1749569182649,0.02748845,109130.0,109120.0,0.80073414]
[1749569183266,0.01832541,109130.0,109120.0,0.80073414]
[1749569183479,0.02748837,109130.0,109120.0,0.80073414]
[1749569183691,0.04581479,109130.0,109120.0,0.80173414]
[1749569183916,0.0366515,109130.0,109120.0,0.80173414]
[1749569184125,0.03665141,109130.0,109120.0,0.80173414]
[1749569184547,0.03665141,109130.0,109120.0,0.80373414]
[1749569185185,0.036652,109130.0,109120.0,0.80373414]
[1749569185393,0.02748879,109130.0,109120.0,0.80373414]
[1749569185604,0.036652,109130.0,109120.0,0.80373414]
[1749569186271,0.17385444,109140.0,109120.0,0.77163414]
[1749569186490,0.03665166,109130.0,109120.0,0.71168074]
[1749569186702,0.03665166,109130.0,109120.0,0.90007414]
[1749569187349,0.03665166,109130.0,109120.0,0.89807414]
[1749569187556,0.03665166,109130.0,109120.0,0.90007414]
[1749569187966,0.03665166,109130.0,109120.0,0.89807414]
[1749569187967,0.03665158,109130.0,109120.0,0.89807414]
[1749569188378,0.03665158,109130.0,109120.0,0.90007414]
[1749569188732,0.15318119,109140.0,109120.0,0.82735231]
[1749569189008,0.20355673,109150.0,109140.0,0.21454085]
[1749569189210,0.21271843,109150.0,109140.0,0.54030322]
[1749569189430,0.21271843,109150.0,109140.0,0.5040922]
[1749569190028,0.21271843,109150.0,109140.0,0.54028483]
[1749569190397,0.21271835,109150.0,109140.0,0.54028483]
[1749569190777,0.0294835,109150.0,109140.0,0.83488483]
[1749569190994,0.002,109150.0,109140.0,0.83488483]
[1749569191205,0.02948376,109150.0,109140.0,0.86222445]
[1749569191663,0.03864546,109150.0,109140.0,0.8260522]
[1749569191864,0.02948376,109150.0,109140.0,0.8260522]
[1749569192187,0.03864538,109150.0,109140.0,0.8280522]
[1749569192811,0.02948376,109150.0,109140.0,0.8280522]
[1749569193153,0.03864538,109150.0,109140.0,0.8270522]
[1749569193355,0.03864538,109150.0,109140.0,0.86522088]
[1749569193565,0.02032231,109150.0,109140.0,0.86322088]
[1749569193798,0.02948367,109150.0,109140.0,0.86622088]
[1749569193972,0.02948376,109150.0,109140.0,0.8300522]
[1749569194196,0.02948376,109150.0,109140.0,0.8270522]
[1749569194404,0.02032231,109150.0,109140.0,0.8270522]
[1749569194611,0.02032231,109150.0,109140.0,0.8300522]
[1749569194822,0.03864546,109150.0,109140.0,0.8300522]
[1749569195025,0.03864538,109150.0,109140.0,0.8300522]
[1749569195437,0.03864538,109150.0,109140.0,0.86621184]
[1749569195847,0.19202586,109160.0,109140.0,0.86621184]
[1749569196058,0.0274841,109150.0,109140.0,0.77485844]
[1749569196266,0.0274841,109150.0,109140.0,0.86621184]
[1749569196684,0.03664538,109150.0,109140.0,0.73981184]
[1749569196894,0.20155715,109150.0,109140.0,0.65479531]
[1749569197099,0.20155715,109150.0,109140.0,0.75479531]
[1749569197311,0.20155715,109150.0,109140.0,0.6849063]
[1749569197515,0.1923957,109150.0,109140.0,0.7789063]
[1749569197728,0.1923957,109150.0,109140.0,0.6819063]
[1749569197942,0.1923957,109150.0,109140.0,0.4849063]
[1749569198155,0.18323408,109150.0,109140.0,0.6849063]
[1749569198378,0.18323408,109150.0,109140.0,0.43420581]
[1749569198379,0.21603408,109150.0,109140.0,0.43420581]
[1749569198824,0.21603408,109150.0,109140.0,0.44874666]
[1749569199025,0.21603408,109150.0,109140.0,0.54574666]
[1749569199428,0.21603408,109150.0,109140.0,0.54274666]
[1749569200101,0.21603408,109150.0,109140.0,0.54374666]
[1749569200304,0.21603408,109150.0,109140.0,0.54174666]
[1749569200509,0.21603408,109150.0,109140.0,0.51363567]
[1749569200726,0.21603408,109150.0,109140.0,0.54076297]
[1749569201965,0.21603408,109150.0,109140.0,0.24616297]
[1749569203007,0.17703408,109150.0,109140.0,0.24616297]
[1749569203226,0.17703408,109150.0,109140.0,0.14916297]
[1749569203641,0.17703408,109150.0,109140.0,0.24616297]
[1749569205151,0.20485477,109150.0,109140.0,0.24616297]
[1749569206426,0.20485477,109150.0,109140.0,0.28233271]
[1749569207142,0.20485477,109150.0,109140.0,0.15465044]
[1749569207391,0.22361324,109140.0,109130.0,0.097]
[1749569209993,0.18461324,109140.0,109130.0,0.097]
[1749569210454,0.19377561,109140.0,109130.0,0.097]
[1749569211330,0.53377561,109140.0,109130.0,0.097]
[1749569211538,0.53377561,109140.0,109130.0,0.10961273]
[1749569211961,0.53377561,109140.0,109130.0,0.097]
[1749569212451,0.22303087,109130.0,109120.0,0.05087626]
[1749569212655,0.22303087,109130.0,109120.0,0.1903134]
[1749569212863,0.22303087,109130.0,109120.0,0.21206236]
[1749569213286,0.22303087,109130.0,109120.0,0.11510236]
[1749569213486,0.22303087,109130.0,109120.0,0.1903134]
[1749569213619,0.22303087,109130.0,109120.0,0.21206236]
[1749569214053,0.22303087,109130.0,109120.0,0.23598133]
[1749569219028,0.16259408,109130.0,109120.0,0.30934948]
[1749569219365,0.16259408,109130.0,109120.0,0.21238948]
[1749569219564,0.16259408,109130.0,109120.0,0.30934948]
[1749569220894,0.16259408,109130.0,109120.0,0.25373051]
[1749569222551,0.17849408,109130.0,109120.0,0.25373051]
[1749569222952,0.16259408,109130.0,109120.0,0.25373051]
[1749569223153,0.16259408,109130.0,109120.0,0.15677051]
[1749569223326,0.16259408,109130.0,109120.0,0.25373051]
[1749569223496,0.16259408,109130.0,109120.0,0.28977219]
[1749569224102,0.12359408,109130.0,109120.0,0.28977219]
[1749569225050,0.13919408,109130.0,109120.0,0.28977219]
[1749569226669,0.13919408,109130.0,109120.0,0.27523134]
[1749569227096,0.12359408,109130.0,109120.0,0.27523134]
[1749569228043,0.15409408,109130.0,109120.0,0.14222966]
[1749569228364,0.15409408,109130.0,109120.0,0.21206236]
[1749569228919,0.15409408,109130.0,109120.0,0.2120601]
[1749569229330,0.49409408,109130.0,109120.0,0.2120601]
[1749569229564,0.49409408,109130.0,109120.0,0.1903134]
[1749569230423,0.49409408,109130.0,109120.0,0.21206308]
[1749569230629,0.49409408,109130.0,109120.0,0.23381276]
[1749569231253,0.45509408,109130.0,109120.0,0.23381276]
[1749569234199,0.45509408,109130.0,109120.0,0.23385276]
[1749569235243,0.45509408,109130.0,109120.0,0.21210308]
[1749569235664,0.42459408,109130.0,109120.0,0.21210308]
[1749569235884,0.42459408,109130.0,109120.0,0.23928645]
[1749569236726,0.45719408,109130.0,109120.0,0.23928645]
[1749569236939,0.45719408,109130.0,109120.0,0.05097305]
[1749569237164,0.51825481,109130.0,109120.0,0.02378968]
[1749569237400,0.51825481,109130.0,109120.0,0.00204]
[1749569239521,0.60960821,109130.0,109120.0,0.00204]
[1749569244087,0.73280821,109130.0,109120.0,0.00204]
[1749569244509,0.58039408,109130.0,109120.0,0.00204]
[1749569247902,0.24039408,109130.0,109120.0,0.00204]
[1749569248130,0.11719408,109130.0,109120.0,0.00204]
[1749569248616,0.45719408,109130.0,109120.0,0.00204]
[1749569252154,0.42459408,109130.0,109120.0,0.00204]
[1749569253696,0.08459408,109130.0,109120.0,0.0933934]
[1749569253903,0.08459408,109130.0,109120.0,0.14208101]
[1749569254327,0.42459408,109130.0,109120.0,0.14208101]
[1749569255110,0.08459408,109130.0,109120.0,0.14208101]
[1749569255340,0.21991966,109130.0,109120.0,0.21093839]
[1749569255561,0.21075704,109130.0,109120.0,0.21093839]
[1749569255715,0.19243104,109130.0,109120.0,0.21093839]
[1749569256351,0.15443104,109130.0,109120.0,0.21093839]
[1749569257005,0.17275755,109130.0,109120.0,0.21093839]
[1749569257241,0.001,109130.0,109120.0,0.21093839]
[1749569257377,0.02848853,109130.0,109120.0,0.21093839]
[1749569257699,0.04681495,109130.0,109120.0,0.21293839]
[1749569257905,0.03665166,109130.0,109120.0,0.21293839]
[1749569258108,0.04581504,109130.0,109120.0,0.21093839]
[1749569258325,0.21075721,109130.0,109120.0,0.21093839]
[1749569258520,0.20159417,109130.0,109120.0,0.51085839]
[1749569258729,0.20159417,109130.0,109120.0,0.54695708]
[1749569258927,0.20159417,109130.0,109120.0,0.34695708]
[1749569259162,0.20159417,109130.0,109120.0,0.29564055]
[1749569261270,0.20159417,109130.0,109120.0,0.32272724]
[1749569262257,0.20159417,109130.0,109120.0,0.12348009]
[1749569262489,0.20159417,109130.0,109120.0,0.1952734]
[1749569262944,0.20159417,109130.0,109120.0,0.1922734]
[1749569263451,0.20159417,109130.0,109120.0,0.1942734]
[1749569263690,0.16259417,109130.0,109120.0,0.1942734]